[Event "Early-Titled-Tuesday-Blitz-March-19-2024"]
[Site "Chess.com"]
[Date "2024.03.19"]
[Round "8"]
[White "TigrVShlyape"]
[Black "MightyMike_009"]
[Result "1-0"]
[WhiteElo "2907"]
[BlackElo "2715"]
[TimeControl "180+1"]
[EndTime "9:29:52 PDT"]
[Termination "TigrVShlyape won by resignation"]

1. e4 {[%clk 0:03:00.9]} 1... e5 {[%clk 0:02:58.8]} 2. Nf3 {[%clk 0:03:00.6]}
2... Nc6 {[%clk 0:02:58.7]} 3. Bb5 {[%clk 0:03:00.5]} 3... a6 {[%clk 0:02:57.6]}
4. Ba4 {[%clk 0:03:00.1]} 4... Nf6 {[%clk 0:02:58.3]} 5. O-O {[%clk 0:03:00.1]}
5... b5 {[%clk 0:02:59]} 6. Bb3 {[%clk 0:02:59.7]} 6... Bc5 {[%clk 0:02:59.8]}
7. c3 {[%clk 0:02:58.4]} 7... d6 {[%clk 0:03:00.4]} 8. d4 {[%clk 0:02:57.6]}
8... Bb6 {[%clk 0:03:01]} 9. h3 {[%clk 0:02:57.6]} 9... O-O {[%clk 0:03:00.2]}
10. Re1 {[%clk 0:02:56.3]} 10... h6 {[%clk 0:02:59.6]} 11. Be3 {[%clk
0:02:54.8]} 11... Re8 {[%clk 0:02:58.4]} 12. Nbd2 {[%clk 0:02:54.3]} 12... exd4
{[%clk 0:02:58.8]} 13. cxd4 {[%clk 0:02:53.5]} 13... Nb4 {[%clk 0:02:59.3]} 14.
e5 {[%clk 0:02:37.7]} 14... Nfd5 {[%clk 0:02:57.9]} 15. a3 {[%clk 0:02:35.3]}
15... Nxe3 {[%clk 0:02:50.7]} 16. Rxe3 {[%clk 0:02:35.2]} 16... Nc6 {[%clk
0:02:47.9]} 17. Bd5 {[%clk 0:02:34.1]} 17... Bd7 {[%clk 0:02:38.9]} 18. Rc1
{[%clk 0:02:26.9]} 18... Nxd4 {[%clk 0:02:29.5]} 19. Bxa8 {[%clk 0:02:24.1]}
19... Qxa8 {[%clk 0:02:25.9]} 20. Re1 {[%clk 0:01:49.8]} 20... Qa7 {[%clk
0:01:47.5]} 21. exd6 {[%clk 0:01:44.3]} 21... Rxe1+ {[%clk 0:01:37.3]} 22. Qxe1
{[%clk 0:01:43]} 22... cxd6 {[%clk 0:01:34.4]} 23. b4 {[%clk 0:01:19]} 23... Ne6
{[%clk 0:00:58.7]} 24. Ne4 {[%clk 0:01:06]} 24... Nf4 {[%clk 0:00:53.6]} 25. Qd2
{[%clk 0:00:58.6]} 25... g5 {[%clk 0:00:50.2]} 26. Nf6+ {[%clk 0:00:50]} 26...
Kg7 {[%clk 0:00:49.2]} 27. Nxd7 {[%clk 0:00:48.8]} 27... Qxd7 {[%clk 0:00:49.4]}
28. Rd1 {[%clk 0:00:41]} 28... d5 {[%clk 0:00:46.4]} 29. Nd4 {[%clk 0:00:34.2]}
29... Kg8 {[%clk 0:00:34.3]} 30. Qc2 {[%clk 0:00:28.9]} 30... Qe8 {[%clk
0:00:27]} 31. Nf5 {[%clk 0:00:27.1]} 31... Qe6 {[%clk 0:00:22.6]} 32. Qc8+
{[%clk 0:00:21.8]} 32... Kh7 {[%clk 0:00:11.9]} 33. Qxe6 {[%clk 0:00:21.3]}
33... fxe6 {[%clk 0:00:12.8]} 34. Nd6 {[%clk 0:00:19.7]} 34... e5 {[%clk
0:00:07.1]} 35. Kf1 {[%clk 0:00:19.3]} 35... Bd4 {[%clk 0:00:07.2]} 36. Ne8
{[%clk 0:00:16.5]} 36... Kg6 {[%clk 0:00:07]} 37. Nc7 {[%clk 0:00:16.4]} 37...
Bb2 {[%clk 0:00:06.4]} 38. Nxd5 {[%clk 0:00:15.7]} 38... Bxa3 {[%clk 0:00:05.5]}
39. Nxf4+ {[%clk 0:00:15.7]} 39... gxf4 {[%clk 0:00:05.8]} 40. Ra1 {[%clk
0:00:16]} 40... Bxb4 {[%clk 0:00:05.6]} 41. Rxa6+ {[%clk 0:00:16.6]} 41... Kg5
{[%clk 0:00:05.2]} 42. Rb6 {[%clk 0:00:17.2]} 42... Bc3 {[%clk 0:00:05.7]} 43.
Rxb5 {[%clk 0:00:17.5]} 43... Bd4 {[%clk 0:00:06.4]} 44. f3 {[%clk 0:00:15.5]}
44... h5 {[%clk 0:00:07]} 45. Rb7 {[%clk 0:00:14.7]} 45... Kh4 {[%clk
0:00:05.7]} 46. Rg7 {[%clk 0:00:11.2]} 46... Bc3 {[%clk 0:00:05.8]} 47. Rg6
{[%clk 0:00:11.2]} 47... Bd4 {[%clk 0:00:06.1]} 48. Ke2 {[%clk 0:00:11.6]} 48...
Bc3 {[%clk 0:00:06.7]} 49. Kd3 {[%clk 0:00:11.9]} 49... Bd4 {[%clk 0:00:07.3]}
50. Ke4 {[%clk 0:00:12.3]} 50... Bb2 {[%clk 0:00:07.6]} 51. Kf5 {[%clk
0:00:12.7]} 51... Bd4 {[%clk 0:00:08]} 52. Rg5 {[%clk 0:00:13.1]} 52... Bc3
{[%clk 0:00:03.1]} 53. Kg6 {[%clk 0:00:13.1]} 53... e4 {[%clk 0:00:03.5]} 54.
fxe4 {[%clk 0:00:12.6]} 54... f3 {[%clk 0:00:04]} 55. gxf3 {[%clk 0:00:11.3]}
55... Kxh3 {[%clk 0:00:04.2]} 56. Kxh5 {[%clk 0:00:11.5]} 1-0

[Event "Early-Titled-Tuesday-Blitz-March-19-2024"]
[Site "Chess.com"]
[Date "2024.03.19"]
[Round "8"]
[White "GMKrikor"]
[Black "Matrix3x3a"]
[Result "1/2-1/2"]
[WhiteElo "2893"]
[BlackElo "2652"]
[TimeControl "180+1"]
[EndTime "9:29:57 PDT"]
[Termination "Game drawn by repetition"]

1. Nf3 {[%clk 0:03:00.9]} 1... Nf6 {[%clk 0:02:59.5]} 2. c4 {[%clk 0:02:59.2]}
2... c5 {[%clk 0:02:59.2]} 3. Nc3 {[%clk 0:02:56.6]} 3... Nc6 {[%clk 0:02:58.7]}
4. d4 {[%clk 0:02:55.6]} 4... cxd4 {[%clk 0:02:58.8]} 5. Nxd4 {[%clk 0:02:56.5]}
5... e6 {[%clk 0:02:59.1]} 6. e4 {[%clk 0:02:56.5]} 6... Bb4 {[%clk 0:02:58.6]}
7. Nxc6 {[%clk 0:02:56.4]} 7... bxc6 {[%clk 0:02:58.3]} 8. Bd3 {[%clk
0:02:56.1]} 8... e5 {[%clk 0:02:56.9]} 9. O-O {[%clk 0:02:56.2]} 9... O-O {[%clk
0:02:56.2]} 10. h3 {[%clk 0:02:55.7]} 10... h6 {[%clk 0:02:51.1]} 11. Be3 {[%clk
0:02:33.7]} 11... d6 {[%clk 0:02:48.7]} 12. Na4 {[%clk 0:02:33.7]} 12... c5
{[%clk 0:02:38.5]} 13. a3 {[%clk 0:02:24.2]} 13... Ba5 {[%clk 0:02:38.1]} 14.
Rb1 {[%clk 0:02:18]} 14... Bb6 {[%clk 0:02:14]} 15. b4 {[%clk 0:02:13.1]} 15...
cxb4 {[%clk 0:02:10.2]} 16. Nxb6 {[%clk 0:02:06.7]} 16... axb6 {[%clk
0:02:11.1]} 17. axb4 {[%clk 0:02:07.2]} 17... Be6 {[%clk 0:02:09.4]} 18. Qe2
{[%clk 0:01:58.9]} 18... Qc7 {[%clk 0:02:08]} 19. Rfc1 {[%clk 0:01:57.3]} 19...
Nd7 {[%clk 0:02:07]} 20. f3 {[%clk 0:01:56.7]} 20... Ra3 {[%clk 0:01:57.7]} 21.
Rb2 {[%clk 0:01:51.1]} 21... Rfa8 {[%clk 0:01:55.3]} 22. Qd2 {[%clk 0:01:43.3]}
22... Ra1 {[%clk 0:01:46.6]} 23. Rc2 {[%clk 0:01:41.5]} 23... Rxc1+ {[%clk
0:01:42.6]} 24. Rxc1 {[%clk 0:01:41.3]} 24... Kf8 {[%clk 0:01:38.1]} 25. Bf1
{[%clk 0:01:40.7]} 25... Ke7 {[%clk 0:01:32.2]} 26. Qb2 {[%clk 0:01:27.9]} 26...
f6 {[%clk 0:01:24.2]} 27. Bf2 {[%clk 0:01:27.1]} 27... Ra7 {[%clk 0:01:22.5]}
28. Be3 {[%clk 0:01:20.3]} 28... Qb8 {[%clk 0:01:21.3]} 29. Ra1 {[%clk
0:01:14.3]} 29... Qa8 {[%clk 0:01:19.6]} 30. Rxa7 {[%clk 0:01:14.1]} 30... Qxa7
{[%clk 0:01:20.1]} 31. Kf2 {[%clk 0:01:04.6]} 31... g5 {[%clk 0:01:19.2]} 32.
Be2 {[%clk 0:01:04.1]} 32... Qa4 {[%clk 0:01:15.1]} 33. Qc3 {[%clk 0:01:02.3]}
33... Qc6 {[%clk 0:01:04.9]} 34. Qd3 {[%clk 0:00:49.8]} 34... Qa4 {[%clk
0:01:01]} 35. Qc3 {[%clk 0:00:49.5]} 35... Qa2 {[%clk 0:00:53.6]} 36. Ke1 {[%clk
0:00:47.4]} 36... Qa7 {[%clk 0:00:47.6]} 37. Qb2 {[%clk 0:00:43.1]} 37... Qc7
{[%clk 0:00:45.6]} 38. Qc1 {[%clk 0:00:39.9]} 38... Qa7 {[%clk 0:00:43.5]} 39.
Qb2 {[%clk 0:00:38.4]} 39... Qc7 {[%clk 0:00:43]} 40. Qc1 {[%clk 0:00:35.6]}
40... Qa7 {[%clk 0:00:42.7]} 41. Qc3 {[%clk 0:00:33.9]} 41... Qc7 {[%clk
0:00:39.3]} 42. Kd2 {[%clk 0:00:33.5]} 42... Qa7 {[%clk 0:00:38.1]} 43. Qb2
{[%clk 0:00:33.6]} 43... Qc7 {[%clk 0:00:37.5]} 44. Qc3 {[%clk 0:00:30.9]} 44...
Qa7 {[%clk 0:00:35.9]} 45. Kc1 {[%clk 0:00:30.1]} 45... Qa2 {[%clk 0:00:30.6]}
46. Bd2 {[%clk 0:00:30.2]} 46... h5 {[%clk 0:00:29.7]} 47. Bd3 {[%clk
0:00:29.4]} 47... h4 {[%clk 0:00:29.3]} 48. Qc2 {[%clk 0:00:19.5]} 48... Qa3+
{[%clk 0:00:22.7]} 49. Kb1 {[%clk 0:00:19.9]} 49... Qa7 {[%clk 0:00:21.4]} 50.
Be2 {[%clk 0:00:19]} 50... Qc7 {[%clk 0:00:21.3]} 51. Kb2 {[%clk 0:00:19.1]}
51... Qa7 {[%clk 0:00:20.8]} 52. Qc3 {[%clk 0:00:19]} 52... Qc7 {[%clk
0:00:21.1]} 53. Be3 {[%clk 0:00:16.5]} 53... Qc6 {[%clk 0:00:20.6]} 54. Bd3
{[%clk 0:00:15.1]} 54... Qc7 {[%clk 0:00:20.6]} 55. Qc2 {[%clk 0:00:14.2]} 55...
Qc6 {[%clk 0:00:21]} 56. Qb3 {[%clk 0:00:10.9]} 56... Qc7 {[%clk 0:00:20.7]} 57.
Qc3 {[%clk 0:00:10.3]} 57... Qc6 {[%clk 0:00:20.8]} 58. Bf2 {[%clk 0:00:10.9]}
58... Qc7 {[%clk 0:00:21.1]} 59. Bf1 {[%clk 0:00:10.1]} 59... Qc6 {[%clk
0:00:21.5]} 60. Be2 {[%clk 0:00:10.2]} 60... Qc7 {[%clk 0:00:21.4]} 61. Kc2
{[%clk 0:00:09.6]} 61... Qc6 {[%clk 0:00:21.7]} 62. Kd2 {[%clk 0:00:10.2]} 62...
Qc7 {[%clk 0:00:22.2]} 63. Be3 {[%clk 0:00:10.8]} 63... Qc6 {[%clk 0:00:22.4]}
64. Kc2 {[%clk 0:00:10.2]} 64... Qc7 {[%clk 0:00:22.8]} 65. Kb2 {[%clk
0:00:10.8]} 65... Qc6 {[%clk 0:00:22.9]} 66. Bf2 {[%clk 0:00:10.4]} 66... Qc7
{[%clk 0:00:23.3]} 67. Be3 {[%clk 0:00:07.3]} 1/2-1/2

[Event "Early-Titled-Tuesday-Blitz-March-19-2024"]
[Site "Chess.com"]
[Date "2024.03.19"]
[Round "8"]
[White "WindWhistler11"]
[Black "MdChess1734"]
[Result "1-0"]
[WhiteElo "2533"]
[BlackElo "2359"]
[TimeControl "180+1"]
[EndTime "9:29:57 PDT"]
[Termination "WindWhistler11 won on time"]

1. Nf3 {[%clk 0:02:09.7]} 1... Nf6 {[%clk 0:02:59]} 2. g3 {[%clk 0:02:08.5]}
2... b5 {[%clk 0:02:57.1]} 3. Bg2 {[%clk 0:02:07]} 3... Bb7 {[%clk 0:02:57.3]}
4. Na3 {[%clk 0:02:03.8]} 4... a6 {[%clk 0:02:47.2]} 5. c4 {[%clk 0:02:01.7]}
5... e5 {[%clk 0:02:30.9]} 6. cxb5 {[%clk 0:01:52.1]} 6... Bxa3 {[%clk
0:02:29.1]} 7. bxa3 {[%clk 0:01:36.9]} 7... axb5 {[%clk 0:02:29.2]} 8. O-O
{[%clk 0:01:35.8]} 8... d6 {[%clk 0:02:26.2]} 9. Qb3 {[%clk 0:01:32.8]} 9... Bc6
{[%clk 0:02:18.1]} 10. Ng5 {[%clk 0:01:16.5]} 10... O-O {[%clk 0:01:00.7]} 11.
Bxc6 {[%clk 0:01:16.7]} 11... Nxc6 {[%clk 0:01:01.3]} 12. Qxb5 {[%clk
0:01:17.3]} 12... Nd4 {[%clk 0:01:02]} 13. Qd3 {[%clk 0:01:17.9]} 13... h6
{[%clk 0:00:55.8]} 14. Nf3 {[%clk 0:01:07.4]} 14... Nxf3+ {[%clk 0:00:55.6]} 15.
Qxf3 {[%clk 0:01:06.8]} 15... Ra4 {[%clk 0:00:53]} 16. Qc6 {[%clk 0:01:00.2]}
16... Ra5 {[%clk 0:00:50.6]} 17. Bb2 {[%clk 0:00:50.3]} 17... Qb8 {[%clk
0:00:49.1]} 18. Rab1 {[%clk 0:00:48.2]} 18... Rb5 {[%clk 0:00:47.2]} 19. Qc2
{[%clk 0:00:45.3]} 19... Qb7 {[%clk 0:00:43.2]} 20. a4 {[%clk 0:00:41]} 20...
Rc5 {[%clk 0:00:32.2]} 21. Bc3 {[%clk 0:00:36.4]} 21... Qa7 {[%clk 0:00:31.1]}
22. Qb3 {[%clk 0:00:29.7]} 22... Ra8 {[%clk 0:00:27.9]} 23. d4 {[%clk
0:00:28.9]} 23... Rd5 {[%clk 0:00:17.3]} 24. dxe5 {[%clk 0:00:23]} 24... dxe5
{[%clk 0:00:17.4]} 25. a5 {[%clk 0:00:22.7]} 25... c6 {[%clk 0:00:16.6]} 26. Qc4
{[%clk 0:00:22.3]} 26... Qd7 {[%clk 0:00:15.5]} 27. Bb4 {[%clk 0:00:12.4]} 27...
Qh3 {[%clk 0:00:14.1]} 28. f3 {[%clk 0:00:09.5]} 28... Qe6 {[%clk 0:00:10.8]}
29. Rfc1 {[%clk 0:00:08.8]} 29... c5 {[%clk 0:00:07.6]} 30. Be1 {[%clk
0:00:09.3]} 30... Qc6 {[%clk 0:00:04.8]} 31. Bf2 {[%clk 0:00:08.5]} 31... e4
{[%clk 0:00:03.3]} 32. fxe4 {[%clk 0:00:07.8]} 32... Re5 {[%clk 0:00:02.5]} 33.
Rb6 {[%clk 0:00:05.9]} 33... Qe8 {[%clk 0:00:01.6]} 34. Bxc5 {[%clk 0:00:03.7]}
34... Rxe4 {[%clk 0:00:01.8]} 35. Qc3 {[%clk 0:00:03.6]} 35... Nd7 {[%clk
0:00:01.9]} 36. Rb5 {[%clk 0:00:02.7]} 36... Nxc5 {[%clk 0:00:02.5]} 37. Rxc5
{[%clk 0:00:03.6]} 37... Rxe2 {[%clk 0:00:02.8]} 38. Qf3 {[%clk 0:00:03.5]}
38... Re3 {[%clk 0:00:03.2]} 39. Qf1 {[%clk 0:00:03.5]} 39... Re7 {[%clk
0:00:03.6]} 40. Rf5 {[%clk 0:00:03.7]} 40... Qd7 {[%clk 0:00:03.7]} 41. h3
{[%clk 0:00:02.6]} 41... Qa7+ {[%clk 0:00:03.9]} 42. Kh2 {[%clk 0:00:02.7]}
42... Qd7 {[%clk 0:00:02.5]} 43. Rc2 {[%clk 0:00:02.9]} 43... Rae8 {[%clk
0:00:02.9]} 44. Rcf2 {[%clk 0:00:03.5]} 44... g6 {[%clk 0:00:03.4]} 45. Rf6
{[%clk 0:00:03.6]} 45... Qd5 {[%clk 0:00:03.2]} 46. h4 {[%clk 0:00:03.7]} 46...
Re1 {[%clk 0:00:03.3]} 47. Qg2 {[%clk 0:00:03.3]} 47... Qxg2+ {[%clk 0:00:02.3]}
48. Kxg2 {[%clk 0:00:04.2]} 48... R8e7 {[%clk 0:00:02.4]} 49. a6 {[%clk
0:00:04.9]} 49... R1e5 {[%clk 0:00:02.5]} 50. h5 {[%clk 0:00:05.4]} 1-0

[Event "Early-Titled-Tuesday-Blitz-March-19-2024"]
[Site "Chess.com"]
[Date "2024.03.19"]
[Round "8"]
[White "Josgar05"]
[Black "Boundless_Strike"]
[Result "0-1"]
[WhiteElo "2377"]
[BlackElo "2630"]
[TimeControl "180+1"]
[EndTime "9:29:58 PDT"]
[Termination "Boundless_Strike won by resignation"]

1. Nf3 {[%clk 0:03:00.9]} 1... d6 {[%clk 0:02:57.9]} 2. d4 {[%clk 0:02:57.7]}
2... e5 {[%clk 0:02:58.8]} 3. dxe5 {[%clk 0:02:57.6]} 3... Bg4 {[%clk
0:02:58.7]} 4. exd6 {[%clk 0:02:56.3]} 4... Bxd6 {[%clk 0:02:59.6]} 5. e3 {[%clk
0:02:49.6]} 5... Nc6 {[%clk 0:02:59.2]} 6. Be2 {[%clk 0:02:49]} 6... Qe7 {[%clk
0:02:59.3]} 7. Nbd2 {[%clk 0:02:45]} 7... O-O-O {[%clk 0:02:59.2]} 8. c3 {[%clk
0:02:43.8]} 8... Nf6 {[%clk 0:02:56.9]} 9. Qa4 {[%clk 0:02:42.8]} 9... Kb8
{[%clk 0:02:48.6]} 10. b4 {[%clk 0:02:32.7]} 10... h5 {[%clk 0:02:28.4]} 11. h3
{[%clk 0:02:19.6]} 11... Bd7 {[%clk 0:02:21.7]} 12. Qc2 {[%clk 0:02:17.2]} 12...
g5 {[%clk 0:02:19]} 13. Nxg5 {[%clk 0:02:11.2]} 13... Rhg8 {[%clk 0:02:18]} 14.
h4 {[%clk 0:02:11.2]} 14... Ng4 {[%clk 0:01:54.9]} 15. b5 {[%clk 0:00:59.7]}
15... Qxe3 {[%clk 0:00:58.1]} 16. Nde4 {[%clk 0:00:31.5]} 16... Nb4 {[%clk
0:00:23.3]} 17. cxb4 {[%clk 0:00:18.6]} 17... Qd4 {[%clk 0:00:15.8]} 18. Bb2
{[%clk 0:00:17.5]} 18... Bxb4+ {[%clk 0:00:14.9]} 19. Bc3 {[%clk 0:00:15.5]}
19... Bf5 {[%clk 0:00:11.8]} 20. O-O {[%clk 0:00:14.5]} 20... Bxc3 {[%clk
0:00:09.1]} 21. Qxc3 {[%clk 0:00:14.3]} 21... Bxe4 {[%clk 0:00:09.4]} 22. Qxd4
{[%clk 0:00:14.2]} 22... Rxd4 {[%clk 0:00:10.3]} 23. f3 {[%clk 0:00:14.6]} 23...
Ne3 {[%clk 0:00:05.5]} 24. Nxe4 {[%clk 0:00:13.3]} 24... Nxf1 {[%clk 0:00:05.3]}
25. Bxf1 {[%clk 0:00:14.2]} 25... f5 {[%clk 0:00:04.1]} 26. Ng5 {[%clk
0:00:13.6]} 26... Rxh4 {[%clk 0:00:03.9]} 27. Ne6 {[%clk 0:00:12.4]} 27... Re8
{[%clk 0:00:03.3]} 28. Ng7 {[%clk 0:00:12.1]} 28... Rf8 {[%clk 0:00:02.8]} 29.
Ne6 {[%clk 0:00:11.6]} 29... Rf6 {[%clk 0:00:02.2]} 30. Rd1 {[%clk 0:00:11.8]}
30... a6 {[%clk 0:00:01.9]} 31. Ng5 {[%clk 0:00:10.8]} 31... Rg6 {[%clk
0:00:02]} 32. Nf7 {[%clk 0:00:09.6]} 32... Rb4 {[%clk 0:00:02]} 33. bxa6 {[%clk
0:00:09.5]} 33... bxa6 {[%clk 0:00:02.7]} 34. Nd8 {[%clk 0:00:08.8]} 34... Rgb6
{[%clk 0:00:02.1]} 35. Rc1 {[%clk 0:00:08.5]} 35... Kc8 {[%clk 0:00:02.7]} 36.
Nc6 {[%clk 0:00:08]} 36... Rb1 {[%clk 0:00:03.4]} 37. Bxa6+ {[%clk 0:00:07.2]}
37... Kd7 {[%clk 0:00:02.7]} 38. Ne5+ {[%clk 0:00:07.6]} 38... Ke6 {[%clk
0:00:02.3]} 39. Nd3 {[%clk 0:00:05.4]} 39... Rxc1+ {[%clk 0:00:02.3]} 40. Nxc1
{[%clk 0:00:06.3]} 40... Rb1 {[%clk 0:00:03.2]} 41. Bc4+ {[%clk 0:00:05.6]}
41... Kd6 {[%clk 0:00:03.8]} 42. Kf2 {[%clk 0:00:06.1]} 42... Rxc1 {[%clk
0:00:04.4]} 43. Bb3 {[%clk 0:00:06.9]} 43... Ke5 {[%clk 0:00:04.5]} 44. Kg3
{[%clk 0:00:07.5]} 44... f4+ {[%clk 0:00:04.7]} 45. Kh4 {[%clk 0:00:08]} 45...
Rh1+ {[%clk 0:00:05.4]} 46. Kg5 {[%clk 0:00:08.6]} 46... Rh2 {[%clk 0:00:05.6]}
47. Bc4 {[%clk 0:00:07.3]} 47... Rxg2+ {[%clk 0:00:05.9]} 48. Kxh5 {[%clk
0:00:07.8]} 48... Rg3 {[%clk 0:00:06.5]} 49. Be2 {[%clk 0:00:07.2]} 49... Kd4
{[%clk 0:00:07.1]} 50. Kh4 {[%clk 0:00:06.4]} 50... Ke3 {[%clk 0:00:07.4]} 51.
Bb5 {[%clk 0:00:06.9]} 51... Rxf3 {[%clk 0:00:07.3]} 52. Bc6 {[%clk 0:00:07.6]}
52... Rg3 {[%clk 0:00:07.6]} 53. a4 {[%clk 0:00:08.1]} 53... Rg6 {[%clk
0:00:08]} 54. a5 {[%clk 0:00:08.6]} 54... Rxc6 {[%clk 0:00:08.1]} 0-1

[Event "Early-Titled-Tuesday-Blitz-March-19-2024"]
[Site "Chess.com"]
[Date "2024.03.19"]
[Round "8"]
[White "Dr_Pepper18"]
[Black "yaguigor"]
[Result "1-0"]
[WhiteElo "2429"]
[BlackElo "2549"]
[TimeControl "180+1"]
[EndTime "9:30:00 PDT"]
[Termination "Dr_Pepper18 won by checkmate"]

1. d4 {[%clk 0:03:00.2]} 1... d5 {[%clk 0:02:28.6]} 2. c4 {[%clk 0:02:59.4]}
2... c6 {[%clk 0:02:26.3]} 3. Nf3 {[%clk 0:02:59.1]} 3... Nf6 {[%clk 0:02:25.4]}
4. Nbd2 {[%clk 0:02:57.6]} 4... Bf5 {[%clk 0:02:24.1]} 5. Nh4 {[%clk 0:02:56.5]}
5... Be6 {[%clk 0:02:22.8]} 6. e3 {[%clk 0:02:51.5]} 6... g6 {[%clk 0:02:17.3]}
7. b3 {[%clk 0:02:50.8]} 7... Bg7 {[%clk 0:02:16.1]} 8. Bb2 {[%clk 0:02:51.1]}
8... Ne4 {[%clk 0:02:13.6]} 9. Be2 {[%clk 0:02:39.9]} 9... Qa5 {[%clk
0:02:05.5]} 10. Nf3 {[%clk 0:02:36.3]} 10... Bg4 {[%clk 0:02:02]} 11. O-O {[%clk
0:02:31.9]} 11... Nxd2 {[%clk 0:01:59.8]} 12. Nxd2 {[%clk 0:02:32.8]} 12... Bxe2
{[%clk 0:01:59.1]} 13. Qxe2 {[%clk 0:02:33.7]} 13... Nd7 {[%clk 0:01:53.3]} 14.
Rfc1 {[%clk 0:02:17.4]} 14... O-O {[%clk 0:01:50.4]} 15. a3 {[%clk 0:02:12.5]}
15... e6 {[%clk 0:01:46.7]} 16. b4 {[%clk 0:02:12.4]} 16... Qa4 {[%clk
0:01:44.4]} 17. Qd3 {[%clk 0:01:50]} 17... a5 {[%clk 0:01:40]} 18. Bc3 {[%clk
0:01:42.4]} 18... Rfc8 {[%clk 0:01:20.6]} 19. bxa5 {[%clk 0:01:36.5]} 19... c5
{[%clk 0:01:16.9]} 20. cxd5 {[%clk 0:01:28.5]} 20... c4 {[%clk 0:01:00.3]} 21.
Qc2 {[%clk 0:01:20.8]} 21... Qxc2 {[%clk 0:00:58]} 22. Rxc2 {[%clk 0:01:21.7]}
22... exd5 {[%clk 0:00:58]} 23. Rb2 {[%clk 0:01:22]} 23... Rc7 {[%clk
0:00:55.7]} 24. Rab1 {[%clk 0:01:21.9]} 24... Ra7 {[%clk 0:00:52.8]} 25. Rb5
{[%clk 0:01:09.6]} 25... Nf6 {[%clk 0:00:51.3]} 26. h3 {[%clk 0:01:06.1]} 26...
Bf8 {[%clk 0:00:51.3]} 27. a4 {[%clk 0:01:05.9]} 27... h5 {[%clk 0:00:48.7]} 28.
Kf1 {[%clk 0:01:01.7]} 28... Be7 {[%clk 0:00:46.6]} 29. Ke2 {[%clk 0:01:01.9]}
29... Kf8 {[%clk 0:00:46.5]} 30. f3 {[%clk 0:01:00.5]} 30... Ke8 {[%clk
0:00:40]} 31. e4 {[%clk 0:01:00.8]} 31... Rd7 {[%clk 0:00:38.7]} 32. e5 {[%clk
0:00:56.8]} 32... Nh7 {[%clk 0:00:34.1]} 33. Nf1 {[%clk 0:00:56.8]} 33... Ng5
{[%clk 0:00:33.4]} 34. Ne3 {[%clk 0:00:56]} 34... Ne6 {[%clk 0:00:31.4]} 35. Kf1
{[%clk 0:00:35.2]} 35... Nf4 {[%clk 0:00:26.8]} 36. g3 {[%clk 0:00:33.2]} 36...
Nxh3 {[%clk 0:00:19.7]} 37. Nxd5 {[%clk 0:00:33.4]} 37... g5 {[%clk 0:00:18.1]}
38. Ne3 {[%clk 0:00:29.1]} 38... h4 {[%clk 0:00:15.9]} 39. Kg2 {[%clk
0:00:26.7]} 39... g4 {[%clk 0:00:15.9]} 40. fxg4 {[%clk 0:00:26.4]} 40... Ng5
{[%clk 0:00:16]} 41. Nxc4 {[%clk 0:00:20.5]} 41... hxg3 {[%clk 0:00:13.5]} 42.
Be1 {[%clk 0:00:17.2]} 42... Ne4 {[%clk 0:00:12.4]} 43. d5 {[%clk 0:00:14.6]}
43... f6 {[%clk 0:00:09.1]} 44. e6 {[%clk 0:00:14.3]} 44... Rc7 {[%clk
0:00:09.6]} 45. Ne3 {[%clk 0:00:11]} 45... Nd6 {[%clk 0:00:08.5]} 46. R5b2
{[%clk 0:00:09.7]} 46... Ra6 {[%clk 0:00:07.2]} 47. Bxg3 {[%clk 0:00:10.1]}
47... Ra7 {[%clk 0:00:06.4]} 48. Bxd6 {[%clk 0:00:09.6]} 48... Bxd6 {[%clk
0:00:06.2]} 49. Nf5 {[%clk 0:00:10.5]} 49... Be5 {[%clk 0:00:05.4]} 50. Rd2
{[%clk 0:00:08.6]} 50... Rxa5 {[%clk 0:00:04.1]} 51. d6 {[%clk 0:00:09.1]} 51...
Rc3 {[%clk 0:00:02.8]} 52. d7+ {[%clk 0:00:08.4]} 52... Kd8 {[%clk 0:00:03.4]}
53. e7+ {[%clk 0:00:08.9]} 53... Kc7 {[%clk 0:00:03.9]} 54. d8=Q+ {[%clk
0:00:09.5]} 54... Kc6 {[%clk 0:00:03.9]} 55. Qb6# {[%clk 0:00:09.3]} 1-0

[Event "Early-Titled-Tuesday-Blitz-March-19-2024"]
[Site "Chess.com"]
[Date "2024.03.19"]
[Round "8"]
[White "Eagle_2019"]
[Black "amanjazu"]
[Result "1-0"]
[WhiteElo "2861"]
[BlackElo "2561"]
[TimeControl "180+1"]
[EndTime "9:30:01 PDT"]
[Termination "Eagle_2019 won on time"]

1. d4 {[%clk 0:03:00.9]} 1... Nf6 {[%clk 0:02:59.1]} 2. c4 {[%clk 0:02:57.4]}
2... g6 {[%clk 0:02:59.2]} 3. g3 {[%clk 0:02:54.8]} 3... Bg7 {[%clk 0:02:58.6]}
4. Bg2 {[%clk 0:02:54]} 4... O-O {[%clk 0:02:58.5]} 5. Nc3 {[%clk 0:02:51.6]}
5... d6 {[%clk 0:02:58.6]} 6. Nf3 {[%clk 0:02:50.3]} 6... c5 {[%clk 0:02:58.1]}
7. O-O {[%clk 0:02:48.5]} 7... Nc6 {[%clk 0:02:57]} 8. dxc5 {[%clk 0:02:47.4]}
8... dxc5 {[%clk 0:02:56.8]} 9. Bf4 {[%clk 0:02:47.7]} 9... Be6 {[%clk
0:02:50.3]} 10. Ne5 {[%clk 0:02:28.5]} 10... Na5 {[%clk 0:01:53.2]} 11. Qe1
{[%clk 0:02:26.6]} 11... Nh5 {[%clk 0:01:47.7]} 12. Rd1 {[%clk 0:02:23.6]} 12...
Qb6 {[%clk 0:01:46.7]} 13. Na4 {[%clk 0:02:21.7]} 13... Qb4 {[%clk 0:01:46.9]}
14. Qxb4 {[%clk 0:02:18.2]} 14... cxb4 {[%clk 0:01:47.8]} 15. Nc5 {[%clk
0:01:17.1]} 15... g5 {[%clk 0:01:43.4]} 16. Nxe6 {[%clk 0:01:11.6]} 16... fxe6
{[%clk 0:01:44.3]} 17. Bxg5 {[%clk 0:01:11.6]} 17... Bxe5 {[%clk 0:01:43.5]} 18.
Bxe7 {[%clk 0:01:10.2]} 18... Rf7 {[%clk 0:01:43.2]} 19. Bxb4 {[%clk 0:01:10]}
19... Nxc4 {[%clk 0:01:42.5]} 20. b3 {[%clk 0:01:08.2]} 20... Nb6 {[%clk
0:01:40.7]} 21. a4 {[%clk 0:01:05.2]} 21... Nf6 {[%clk 0:01:31.4]} 22. f4 {[%clk
0:01:00.4]} 22... Bc7 {[%clk 0:01:27.1]} 23. f5 {[%clk 0:00:56]} 23... Re8
{[%clk 0:00:56.5]} 24. a5 {[%clk 0:00:50.2]} 24... Nbd7 {[%clk 0:00:39.6]} 25.
Bxb7 {[%clk 0:00:41.1]} 25... exf5 {[%clk 0:00:38.3]} 26. Rxf5 {[%clk
0:00:36.9]} 26... Rxe2 {[%clk 0:00:37.5]} 27. Rdf1 {[%clk 0:00:34]} 27... Re5
{[%clk 0:00:33.3]} 28. Bc8 {[%clk 0:00:13.8]} 28... Rxf5 {[%clk 0:00:15.6]} 29.
Rxf5 {[%clk 0:00:14.7]} 29... Kg7 {[%clk 0:00:14.4]} 30. Rg5+ {[%clk 0:00:13.5]}
30... Kh6 {[%clk 0:00:14.3]} 31. Bd2 {[%clk 0:00:11.4]} 31... Ne4 {[%clk
0:00:14.7]} 32. Rf5+ {[%clk 0:00:11.6]} 32... Kg6 {[%clk 0:00:14.8]} 33. Rxf7
{[%clk 0:00:09]} 33... Kxf7 {[%clk 0:00:15.7]} 34. Be3 {[%clk 0:00:07.7]} 34...
Ndc5 {[%clk 0:00:08.2]} 35. b4 {[%clk 0:00:06]} 35... Nd3 {[%clk 0:00:08.6]} 36.
Bf5 {[%clk 0:00:04.5]} 36... Nxb4 {[%clk 0:00:05.1]} 37. Bxe4 {[%clk 0:00:04.5]}
37... a6 {[%clk 0:00:05.1]} 38. Bxh7 {[%clk 0:00:04.2]} 38... Bxa5 {[%clk
0:00:05.4]} 39. Bb1 {[%clk 0:00:02.4]} 39... Ke6 {[%clk 0:00:06.3]} 40. g4
{[%clk 0:00:02.4]} 40... Nd5 {[%clk 0:00:06.7]} 41. Bd4 {[%clk 0:00:02.4]} 41...
Bb6 {[%clk 0:00:06]} 42. Bxb6 {[%clk 0:00:02.5]} 42... Nxb6 {[%clk 0:00:06.8]}
43. h4 {[%clk 0:00:03]} 43... a5 {[%clk 0:00:07.3]} 44. h5 {[%clk 0:00:03.3]}
44... a4 {[%clk 0:00:07.9]} 45. h6 {[%clk 0:00:03.5]} 45... Kf7 {[%clk
0:00:06.3]} 46. g5 {[%clk 0:00:04]} 46... a3 {[%clk 0:00:05.7]} 47. g6+ {[%clk
0:00:04]} 47... Kf6 {[%clk 0:00:01.8]} 48. g7 {[%clk 0:00:04.4]} 1-0